fUSD/lending_fUSD_20240107
["ID","MTS","AMOUNT","RATE_DAILY","PERIOD"]
[310690065,1704641491514,-5000.0,0.00031763,2]
[310690066,1704641491523,-58000.0,0.00031771,3]
[310690067,1704641491533,-58000.0,0.00031779,3]
[310690068,1704641491544,-58000.0,0.00031788,3]
[310690069,1704641491554,-58000.0,0.00031797,3]
[310690070,1704641491563,-150.0,0.00031799,2]
[310690071,1704641491573,-1214.079179,0.000318,2]
[310690072,1704641491583,-311485.106666,0.000318,3]
[310690073,1704641491593,-1061.308643,0.000318,2]
[310690074,1704641491602,-1000.0,0.00031818,2]
[310690075,1704641491611,-5000.0,0.0003185,2]
[310690076,1704641491621,-150.3115156,0.000319,2]
[310690077,1704641491632,-150.31151548,0.000319,2]
[310690078,1704641491641,-150.31151548,0.000319,2]
[310690079,1704641491651,-150.31151548,0.000319,2]
[310690080,1704641491661,-150.31151548,0.000319,2]
[310690081,1704641491671,-150.31151548,0.000319,2]
[310690082,1704641491680,-150.31151548,0.000319,2]
[310690083,1704641491690,-150.31151548,0.000319,2]
[310690084,1704641491699,-150.31151548,0.000319,2]
[310690085,1704641491709,-150.31151548,0.000319,2]
[310690086,1704641491719,-150.31151548,0.000319,2]
[310690087,1704641491728,-150.31151548,0.000319,2]
[310690088,1704641491738,-150.31151548,0.000319,2]
[310690089,1704641491747,-150.31151548,0.000319,2]
[310690090,1704641491757,-150.31151548,0.000319,2]
[310690091,1704641491767,-150.31151548,0.000319,2]
[310690092,1704641491776,-150.31151548,0.000319,2]
[310690093,1704641491785,-150.31151548,0.000319,2]
[310690094,1704641491794,-150.31151548,0.000319,2]
[310690095,1704641491803,-5000.0,0.00031938,2]
[310690096,1704641491812,-153.84,0.00031963,2]
[310690097,1704641491822,-500.0,0.00031967,2]
[310690098,1704641491832,-489.76991497,0.00032,4]
[310690099,1704641491841,-155.0,0.00032,2]
[310690100,1704641491851,-155.0,0.00032,4]
[310690101,1704641491861,-297.1247831,0.00032,4]
[310690102,1704641491870,-1200.0,0.00032,33]
[310690103,1704641491881,-5000.0,0.00032,10]
[310690104,1704641491889,-3000.0,0.00032,2]
[310690105,1704641491899,-424.55788583,0.00032,2]
[310690106,1704641491909,-424.55788583,0.00032,2]
[310690107,1704641491919,-424.55788583,0.00032,2]
[310690108,1704641491929,-424.55788583,0.00032,2]
[310690109,1704641491938,-424.55788583,0.00032,2]
[310690110,1704641491948,-424.55788583,0.00032,2]
[310690111,1704641491958,-424.55788583,0.00032,2]
[310690112,1704641491967,-424.55788583,0.00032,2]
[310690113,1704641491977,-424.55788583,0.00032,2]
[310690114,1704641491987,-424.55788583,0.00032,2]
[310690115,1704641491997,-424.55788583,0.00032,2]
[310690116,1704641492006,-424.55788583,0.00032,2]
[310690117,1704641492015,-424.55788583,0.00032,2]
[310690118,1704641492024,-424.55788583,0.00032,2]
[310690119,1704641492034,-424.55788583,0.00032,2]
[310690120,1704641492043,-424.55788583,0.00032,2]
[310690121,1704641492053,-424.55788583,0.00032,2]
[310690122,1704641492063,-424.55788583,0.00032,2]
[310690123,1704641492072,-424.55788583,0.00032,2]
[310690124,1704641492082,-424.55788583,0.00032,2]
[310690125,1704641492091,-424.55788583,0.00032,2]
[310690126,1704641492102,-424.55788583,0.00032,2]
[310690127,1704641492165,-424.55788583,0.00032,2]
[310690128,1704641492174,-424.55788583,0.00032,2]
[310690129,1704641492184,-424.55788583,0.00032,2]
[310690130,1704641492194,-424.55788583,0.00032,2]
[310690131,1704641492203,-424.55788583,0.00032,2]
[310690132,1704641492213,-424.55788583,0.00032,2]
[310690133,1704641492222,-424.55788583,0.00032,2]
[310690134,1704641492232,-424.55788583,0.00032,2]
[310690135,1704641492241,-424.55788583,0.00032,2]
[310690136,1704641492251,-424.55788583,0.00032,2]
[310690137,1704641492260,-424.55788583,0.00032,2]
[310690138,1704641492269,-424.55788583,0.00032,2]
[310690139,1704641492279,-424.55788583,0.00032,2]
[310690140,1704641492287,-424.55788583,0.00032,2]
[310690141,1704641492297,-424.55788583,0.00032,2]
[310690142,1704641492307,-424.55788583,0.00032,2]
[310690143,1704641492316,-424.55788583,0.00032,2]
[310690144,1704641492325,-424.55788583,0.00032,2]
[310690145,1704641492334,-424.55788583,0.00032,2]
[310690146,1704641492343,-424.55788583,0.00032,2]
[310690147,1704641492353,-424.55788583,0.00032,2]
[310690148,1704641492362,-424.55788583,0.00032,2]
[310690149,1704641492371,-424.55788583,0.00032,2]
[310690150,1704641492382,-424.55788583,0.00032,2]
[310690151,1704641492391,-424.55788583,0.00032,2]
[310690152,1704641492401,-424.55788583,0.00032,2]
[310690153,1704641492410,-424.55788583,0.00032,2]
[310690154,1704641492419,-424.55788583,0.00032,2]
[310690155,1704641492428,-424.55788583,0.00032,2]
[310690156,1704641492437,-424.55788583,0.00032,2]
[310690157,1704641492447,-424.55788583,0.00032,2]
[310690158,1704641492456,-424.55788583,0.00032,2]
[310690159,1704641492465,-424.55788583,0.00032,2]
[310690160,1704641492474,-424.55788583,0.00032,2]
[310690161,1704641492484,-424.55788583,0.00032,2]
[310690162,1704641492493,-424.55788583,0.00032,2]
[310690163,1704641492502,-424.55788583,0.00032,2]
[310690164,1704641492511,-424.55788583,0.00032,2]
[310690165,1704641492520,-424.55788583,0.00032,2]
[310690166,1704641492530,-424.55788583,0.00032,2]
[310690167,1704641492540,-424.55788583,0.00032,2]
[310690168,1704641492550,-424.55788583,0.00032,2]
[310690169,1704641492560,-424.55788583,0.00032,2]
[310690170,1704641492570,-424.55788583,0.00032,2]
[310690171,1704641492580,-424.55788583,0.00032,2]
[310690172,1704641492590,-424.55788583,0.00032,2]
[310690173,1704641492599,-424.55788583,0.00032,2]
[310690174,1704641492609,-424.55788583,0.00032,2]
[310690175,1704641492618,-424.55788583,0.00032,2]
[310690176,1704641492628,-424.55788583,0.00032,2]
[310690177,1704641492638,-424.55788583,0.00032,2]
[310690178,1704641492647,-424.55788583,0.00032,2]
[310690179,1704641492657,-424.55788583,0.00032,2]
[310690180,1704641492666,-424.55788583,0.00032,2]
[310690181,1704641492676,-424.55788583,0.00032,2]
[310690182,1704641492685,-424.55788583,0.00032,2]
[310690183,1704641492695,-424.55788583,0.00032,2]
[310690184,1704641492704,-424.55788583,0.00032,2]
[310690185,1704641492713,-424.55788583,0.00032,2]
[310690186,1704641492723,-424.55788583,0.00032,2]
[310690187,1704641492733,-424.55788583,0.00032,2]
[310690188,1704641492742,-424.55788583,0.00032,2]
[310690189,1704641492751,-424.55788583,0.00032,2]
[310690190,1704641492760,-424.55788583,0.00032,2]
[310690191,1704641492769,-424.55788583,0.00032,2]
[310690192,1704641492779,-424.55788583,0.00032,2]
[310690193,1704641492788,-424.55788583,0.00032,2]
[310690194,1704641492797,-424.55788583,0.00032,2]
[310690195,1704641492806,-424.55788583,0.00032,2]
[310690196,1704641492815,-424.55788583,0.00032,2]
[310690197,1704641492824,-424.55788583,0.00032,2]
[310690198,1704641492833,-424.55788583,0.00032,2]
[310690199,1704641492842,-424.55788583,0.00032,2]
[310690200,1704641492851,-424.55788583,0.00032,2]
[310690201,1704641492860,-424.55788583,0.00032,2]
[310690202,1704641492875,-424.55788583,0.00032,2]
[310690203,1704641492884,-424.55788583,0.00032,2]
[310690204,1704641492893,-424.55788583,0.00032,2]
[310690205,1704641492903,-3000.0,0.0003201,2]
[310690206,1704641492916,-3000.0,0.0003202,2]
[310690207,1704641492925,-1068.12,0.00032025,2]
[310690208,1704641492935,-3000.0,0.0003203,2]
[310690209,1704641492944,-3000.0,0.0003204,2]
[310690210,1704641492954,-3000.0,0.0003205,2]
[310690211,1704641492964,-3000.0,0.0003206,2]
[310690212,1704641492973,-3000.0,0.0003207,2]
[310690213,1704641492982,-3000.0,0.0003208,2]
[310690214,1704641492991,-1000.0,0.00032082,10]
[310690215,1704641493001,-3000.0,0.0003209,2]
[310690216,1704641493010,-3000.0,0.000321,2]
[310690217,1704641493019,-3000.0,0.0003211,2]
[310690218,1704641493029,-3000.0,0.0003212,2]
[310690219,1704641493038,-3000.0,0.0003213,2]
[310690220,1704641493048,-5414.539972,0.0003214,2]
[310690221,1704641493057,-150.31151548,0.00032154,2]
[310690222,1704641493066,-2000.0,0.00032158,120]
[310690223,1704641493076,-2000.0,0.00032158,120]
[310690224,1704641493086,-211.0,0.0003218,2]
[310690225,1704641493095,-500.0,0.00032188,2]
[310690226,1704641493104,-1282.96181558,0.00032208,2]
[310690227,1704641493113,-812.03,0.00032221,2]
[310690228,1704641493123,-157.28,0.00032227,2]
[310690229,1704641493133,-2046.0,0.000323,5]
[310690230,1704641493142,-175.0,0.0003239,34]
[310690231,1704641493151,-500.0,0.00032409,2]
[310690232,1704641493161,-1000.0,0.0003263,10]
[310690233,1704641493170,-500.0,0.0003263,2]
[310690234,1704641493179,-150.31151548,0.00032668,2]
[310690235,1704641493189,-1000.0,0.00032727,2]
[310690236,1704641493198,-150.0,0.00032788,2]
[310690237,1704641493208,-211.0,0.0003279,2]
[310690238,1704641493218,-213.0,0.0003279,2]
[310690239,1704641493227,-150.0,0.00032799,2]
[310690240,1704641493236,-1000.0,0.000328,2]
[310690241,1704641493245,-1000.0,0.000328,2]
[310690242,1704641493255,-5746.0,0.00032808,30]
[310690243,1704641493264,-500.0,0.00032851,2]
[310690244,1704641493273,-162.07787512,0.00032876,7]
[310690245,1704641493282,-216.10383349,0.00032876,7]
[310690246,1704641493291,-361.40495955,0.00032876,7]
[310690247,1704641493300,-600.65267606,0.00032876,7]
[310690248,1704641493310,-500.0,0.00032876,7]
[310690249,1704641493319,-500.0,0.00032876,7]
[310690250,1704641493328,-500.0,0.00032876,7]
[310690251,1704641493337,-500.0,0.00032876,7]
[310690252,1704641493346,-500.0,0.00032876,7]
[310690253,1704641493356,-500.0,0.00032876,7]
[310690254,1704641493365,-500.0,0.00032876,7]
[310690255,1704641493386,-500.0,0.00032876,7]
[310690256,1704641493396,-500.0,0.00032876,7]
[310690257,1704641493406,-500.0,0.00032876,7]
[310690258,1704641493415,-388.09555881,0.00032876,7]
[310690259,1704641493425,-500.0,0.00032876,7]
[310690260,1704641493434,-500.0,0.00032876,7]
[310690261,1704641493444,-500.0,0.00032876,7]
[310690262,1704641493454,-492.06370588,0.00032876,7]
[310690263,1704641493467,-500.0,0.00032876,7]
[310690264,1704641493477,-500.0,0.00032876,7]
[310690265,1704641493486,-500.0,0.00032876,7]
[310690266,1704641493496,-500.0,0.00032876,7]
[310690267,1704641493505,-500.0,0.00032876,7]
[310690268,1704641493518,-500.0,0.00032876,7]
[310690269,1704641493533,-352.06370587,0.00032876,7]
[310690270,1704641493542,-500.0,0.00032876,7]
[310690271,1704641493552,-500.0,0.00032876,7]
[310690272,1704641493561,-240.26107042,0.00032876,7]
[310690273,1704641493571,-180.70247977,0.00032876,7]
[310690274,1704641493581,-264.72719602,0.00032876,7]
[310690275,1704641493590,-666.0,0.00032876,2]
[310690276,1704641493600,-500.0,0.00032876,2]
[310690277,1704641493610,-500.0,0.00032876,2]
[310690278,1704641493620,-500.0,0.00032876,2]
[310690279,1704641493631,-500.0,0.00032876,2]
[310690280,1704641493641,-500.0,0.00032876,2]
[310690281,1704641493651,-500.0,0.00032876,2]
[310690282,1704641493661,-500.0,0.00032876,2]
[310690283,1704641493672,-479.54361905,0.00032876,2]
[310690284,1704641493682,-500.0,0.00032876,2]
[310690285,1704641493692,-500.0,0.00032876,2]
[310690286,1704641493703,-513.23578335,0.00032876,2]
[310690287,1704641493713,-283.29141854,0.00032876,2]
[310690288,1704641493724,-1000.0,0.00032876,4]
[310690289,1704641493734,-1000.0,0.00032876,4]
[310690290,1704641493744,-1000.0,0.00032876,4]
[310690291,1704641493755,-1000.0,0.00032876,4]
[310690292,1704641493765,-1000.0,0.00032876,4]
[310690293,1704641493774,-1000.0,0.00032876,4]
[310690294,1704641493784,-236.4086919,0.00032876,4]
[310690295,1704641493793,-500.0,0.00032876,2]
[310690296,1704641493804,-500.0,0.00032876,2]
[310690297,1704641493814,-500.0,0.00032876,2]
[310690298,1704641493823,-500.0,0.00032876,2]
[310690299,1704641493833,-500.0,0.00032876,2]
[310690300,1704641493844,-500.0,0.00032876,2]
[310690301,1704641493854,-500.0,0.00032876,2]
[310690302,1704641493864,-500.0,0.00032876,2]
[310690303,1704641493876,-500.0,0.00032876,2]
[310690304,1704641493886,-500.0,0.00032876,2]
[310690305,1704641493896,-500.0,0.00032876,2]
[310690306,1704641493906,-500.0,0.00032876,2]
[310690307,1704641493916,-500.0,0.00032876,2]
[310690308,1704641493926,-500.0,0.00032876,2]
[310690309,1704641493936,-500.0,0.00032876,2]
[310690310,1704641493946,-500.0,0.00032876,2]
[310690311,1704641493956,-500.0,0.00032876,2]
[310690312,1704641493965,-500.0,0.00032876,2]
[310690313,1704641493975,-500.0,0.00032876,2]
[310690314,1704641493985,-500.0,0.00032876,2]
[310690315,1704641493995,-500.0,0.00032876,2]
[310690316,1704641494006,-500.0,0.00032876,2]
[310690317,1704641494016,-500.0,0.00032876,2]
[310690318,1704641494026,-500.0,0.00032876,2]
[310690319,1704641494036,-153.84,0.00032877,2]
[310690320,1704641494045,-150.57997199,0.00032877,2]
[310690321,1704641494055,-2500.0,0.00032877,7]
[310690322,1704641494064,-51863.43,0.00032877,2]
[310690323,1704641494074,-36925.62,0.00032877,2]
[310690324,1704641494084,-4000.0,0.00032877,30]
[310690325,1704641494093,-2683.95,0.00032877,15]
[310690326,1704641494102,-12359.81,0.00032877,2]
[310690327,1704641494112,-150.0,0.00032877,2]
[310690328,1704641494121,-1500.0,0.00032877,7]
[310690329,1704641494131,-1500.0,0.00032877,7]
[310690330,1704641494141,-155.0,0.00032877,2]
[310690331,1704641494150,-3561.6474127,0.000329,15]
[310690332,1704641494159,-150.77373,0.000329,2]
[310690333,1704641494169,-1000.0,0.000329,2]
[310690334,1704641494178,-5500.0,0.000329,2]
[310690335,1704641494187,-52985.3670061,0.000329,3]
[310690336,1704641494197,-4050.0,0.000329,2]
[310690337,1704641494207,-521.0,0.000329,2]
[310690338,1704641494217,-2000.0,0.000329,2]
[310690339,1704641494227,-300.0,0.000329,2]
[310690340,1704641494236,-3000.0,0.000329,2]
[310690341,1704641494246,-500.0,0.000329,2]
[310690342,1704641494255,-155.0,0.00033,4]
[310690343,1704641494265,-1976.16579816,0.00033,2]
[310690344,1704641494274,-1658.77813122,0.00033,4]
[310690345,1704641494285,-4078.22981743,0.00033,2]
[310690346,1704641494294,-23364.11004285,0.00033,2]
[310690347,1704641494305,-3026.92781969,0.00033,2]
[310690348,1704641494314,-2051.5,0.00033,4]
[310690349,1704641494325,-4000.0,0.00033,3]
[310690350,1704641494335,-4000.0,0.00033,3]
[310690351,1704641494345,-800.0,0.00033,3]
[310690352,1704641494355,-98695.28527393,0.00033,2]
[310690353,1704641494365,-626.74,0.00033033,2]
[310690354,1704641494376,-500.0,0.00033072,2]
[310690355,1704641494385,-6999.28151957,0.0003315,4]
[310690356,1704641494395,-1000.0,0.00033178,10]
[310690357,1704641494405,-150.31151548,0.00033182,2]
[310690358,1704641494415,-203.0,0.0003322,13]
[310690359,1704641494425,-500.0,0.00033293,2]
[310690360,1704641494436,-1000.0,0.00033338,7]
[310690361,1704641494446,-1000.0,0.00033339,7]
[310690362,1704641494456,-350.37,0.00033356,2]
[310690363,1704641494467,-2100.03,0.0003337,7]
[310690364,1704641494477,-2100.03,0.0003337,7]
[310690365,1704641494487,-2100.03,0.0003337,7]
[310690366,1704641494497,-2100.03,0.0003337,7]
[310690367,1704641494508,-211.0,0.000334,2]
[310690368,1704641494518,-213.0,0.000334,2]
[310690369,1704641494528,-5046.52181974,0.00033487,2]
[310690370,1704641494538,-157.59,0.000335,2]
[310690371,1704641494548,-157.59,0.000335,2]
[310690372,1704641494558,-157.59,0.000335,2]
[310690373,1704641494568,-157.59,0.000335,2]
[310690374,1704641494578,-4186.15,0.000335,2]
[310690375,1704641494587,-4186.15,0.000335,2]
[310690376,1704641494598,-4186.15,0.000335,2]
[310690377,1704641494608,-4186.15,0.000335,2]
[310690378,1704641494619,-4186.15,0.000335,2]
[310690379,1704641494630,-4186.15,0.000335,2]
[310690380,1704641494639,-4186.15,0.000335,2]
[310690381,1704641494649,-4186.15,0.000335,2]
[310690382,1704641494659,-4186.15,0.000335,2]
[310690383,1704641494670,-4186.15,0.000335,2]
[310690384,1704641494680,-4186.15,0.000335,2]
[310690385,1704641494690,-4186.15,0.000335,2]
[310690386,1704641494701,-4186.15,0.000335,2]
[310690387,1704641494711,-4186.15,0.000335,2]
[310690388,1704641494722,-4186.15,0.000335,2]
[310690389,1704641494732,-4186.15,0.000335,2]
[310690390,1704641494742,-4186.15,0.000335,2]
[310690391,1704641494753,-4186.15,0.000335,2]
[310690392,1704641494764,-4186.15,0.000335,2]
[310690393,1704641494774,-4186.15,0.000335,2]
[310690394,1704641494784,-500.0,0.00033514,2]
[310690395,1704641494795,-1000.0,0.00033636,2]
[310690396,1704641494805,-2100.03,0.00033644,7]
[310690397,1704641494815,-2100.03,0.00033644,7]
[310690398,1704641494826,-150.31151548,0.00033696,2]
[310690399,1704641494835,-1000.0,0.00033726,10]
[310690400,1704641494845,-500.0,0.00033735,2]
[310690401,1704641494856,-153.84,0.0003379,2]
[310690402,1704641494867,-150.0,0.00033799,2]
[310690403,1704641494878,-1000.0,0.000338,2]
[310690404,1704641494887,-1000.0,0.000338,2]
[310690405,1704641494898,-171.74494673,0.00033839,2]
[310690406,1704641494909,-189.02417816,0.000339,2]
[310690407,1704641494918,-189.02417814,0.000339,2]
[310690408,1704641494929,-189.02417814,0.000339,2]
[310690409,1704641494940,-2100.03,0.00033917,7]
[310690410,1704641494952,-2100.03,0.00033917,7]
[310690411,1704641494962,-500.0,0.00033956,2]
[310690412,1704641494972,-400.0,0.0003397,2]
[310690413,1704641494983,-1774.2980221,0.00033994,2]
[310690414,1704641494993,-1586.196674,0.00033994,2]
[310690415,1704641495003,-39257.7155241,0.00033994,2]
[310690416,1704641495013,-1000.0,0.00034,2]
[310690417,1704641495023,-2923.43770003,0.00034,2]
[310690418,1704641495033,-1000.0,0.00034,4]
[310690419,1704641495043,-17078.54640767,0.00034,7]
[310690420,1704641495053,-689.05410998,0.00034,2]
[310690421,1704641495063,-1200.0,0.00034,35]
[310690422,1704641495074,-4668.99,0.00034,30]
[310690423,1704641495084,-309611.09409114,0.00034,30]
[310690424,1704641495095,-211.0,0.00034,2]
[310690425,1704641495106,-213.0,0.00034,2]
[310690426,1704641495116,-2000.0,0.00034,4]
[310690427,1704641495127,-212.0,0.00034,2]
[310690428,1704641495138,-209.0,0.00034,2]
[310690429,1704641495148,-209.0,0.00034,2]
[310690430,1704641495161,-2046.0,0.00034,5]
[310690431,1704641495172,-214.0,0.00034,2]
[310690432,1704641495183,-212.0,0.00034,2]
[310690433,1704641495193,-223.0,0.00034,2]
[310690434,1704641495203,-5464.838387,0.00034,2]
[310690435,1704641495213,-302.972354,0.00034,2]
[310690436,1704641495223,-304.715023,0.00034,2]
[310690437,1704641495233,-304.715023,0.00034,2]
[310690438,1704641495243,-1953.263578,0.00034,2]
[310690439,1704641495253,-1964.456485,0.00034,2]
[310690440,1704641495263,-1964.456484,0.00034,2]
[310690441,1704641495273,-781.02912,0.00034,3]
[310690442,1704641495283,-300.0,0.00034,7]
[310690443,1704641495293,-2093.135182,0.00034,14]
[310690444,1704641495302,-186.810689,0.00034,6]
[310690445,1704641495313,-886.305934,0.00034,2]
[310690446,1704641495323,-600.0,0.00034,2]
[310690447,1704641495333,-150.83,0.00034,2]
[310690448,1704641495346,-150.83,0.00034,2]
[310690449,1704641495360,-150.83,0.00034,2]
[310690450,1704641495370,-150.83,0.00034,2]
[310690451,1704641495381,-150.83,0.00034,2]
[310690452,1704641495392,-150.83,0.00034,2]
[310690453,1704641495402,-150.83,0.00034,2]
[310690454,1704641495411,-175.0,0.0003401,38]
[310690455,1704641495421,-450.0,0.0003402,3]
[310690456,1704641495431,-150.0,0.00034024,120]
[310690457,1704641495441,-1000.0,0.00034054,7]
[310690458,1704641495451,-150.0,0.00034127,120]
[310690459,1704641495461,-150.0,0.00034135,120]
[310690460,1704641495471,-90529.18160057,0.00034172,2]
[310690461,1704641495481,-500.0,0.00034177,2]
[310690462,1704641495492,-450.0,0.0003418,3]
[310690463,1704641495502,-2100.03,0.0003419,7]
[310690464,1704641495512,-2100.03,0.0003419,7]
[310690465,1704641495522,-333.40107,0.00034198,2]
[310690466,1704641495533,-4050.59302175,0.000342,2]
[310690467,1704641495544,-150.31151548,0.0003421,2]
[310690468,1704641495554,-1630.80760204,0.00034247,2]
[310690469,1704641495564,-155.0,0.00034247,2]
[310690470,1704641495575,-1000.0,0.00034274,10]
[310690471,1704641495585,-450.0,0.0003434,3]
[310690472,1704641495597,-500.0,0.00034398,2]
[310690473,1704641495608,-4186.15,0.000344,2]
[310690474,1704641495619,-4186.15,0.000344,2]
[310690475,1704641495630,-4186.15,0.000344,2]
[310690476,1704641495640,-4186.15,0.000344,2]
[310690477,1704641495651,-4186.15,0.000344,2]
[310690478,1704641495661,-4186.15,0.000344,2]
[310690479,1704641495671,-4186.15,0.000344,2]
[310690480,1704641495682,-4186.15,0.000344,2]
[310690481,1704641495692,-4186.15,0.000344,2]
[310690482,1704641495703,-4186.15,0.000344,2]
[310690483,1704641495713,-4186.15,0.000344,2]
[310690484,1704641495723,-4186.15,0.000344,2]
[310690485,1704641495734,-4186.15,0.000344,2]
[310690486,1704641495745,-4186.15,0.000344,2]
[310690487,1704641495755,-4186.15,0.000344,2]
[310690488,1704641495766,-4186.15,0.000344,2]
[310690489,1704641495775,-4186.15,0.000344,2]
[310690490,1704641495786,-4186.15,0.000344,2]
[310690491,1704641495796,-4186.15,0.000344,2]
[310690492,1704641495807,-4186.15,0.000344,2]
[310690493,1704641495817,-150.0,0.00034412,120]
[310690494,1704641495827,-2100.03,0.00034463,7]
[310690495,1704641495838,-2100.03,0.00034463,7]
[310690496,1704641495848,-234.40107,0.00034498,2]
[310690497,1704641495858,-450.0,0.000345,3]
[310690498,1704641495869,-6005.275348,0.0003452,2]
[310690499,1704641495879,-40243.035266,0.0003452,2]
[310690500,1704641495889,-2068.017676,0.0003452,2]
[310690501,1704641495899,-3191.88,0.00034521,2]
[310690502,1704641495909,-500000.0,0.00034532,90]
[310690503,1704641495920,-50000.0,0.00034532,60]
[310690504,1704641495930,-800000.0,0.00034532,60]
[310690505,1704641495939,-150.0,0.00034533,120]
[310690506,1704641495950,-1000.0,0.00034545,2]
[310690507,1704641495960,-150.0,0.00034571,120]
[310690508,1704641495970,-5734.33554511,0.000346,2]
[310690509,1704641495981,-54960.8017337,0.00034608,2]
[310690510,1704641495991,-500.0,0.00034619,2]
[310690511,1704641496001,-191841.10336373,0.00034632,120]
[310690512,1704641496011,-1095.78028998,0.00034632,120]
[310690513,1704641496021,-3765.81940399,0.00034632,120]
[310690514,1704641496031,-10871.62355803,0.00034632,120]
[310690515,1704641496041,-426.64712058,0.00034632,2]
[310690516,1704641496051,-473.12075025,0.00034632,120]
[310690517,1704641496060,-3156.7672366,0.00034632,120]
[310690518,1704641496070,-310.48736513,0.00034632,120]
[310690519,1704641496080,-393.55398534,0.00034632,60]
[310690520,1704641496091,-208836.58,0.00034632,30]
[310690521,1704641496101,-310.66,0.00034632,2]
[310690522,1704641496111,-10000.0,0.00034632,7]
[310690523,1704641496121,-10000.0,0.00034632,7]
[310690524,1704641496132,-10000.0,0.00034632,10]
[310690525,1704641496142,-10000.0,0.00034632,7]
[310690526,1704641496152,-10000.0,0.00034632,7]
[310690527,1704641496162,-10000.0,0.00034632,7]
[310690528,1704641496172,-10000.0,0.00034632,15]
[310690529,1704641496182,-10000.0,0.00034632,15]
[310690530,1704641496192,-199.27398672,0.00034632,20]
[310690531,1704641496202,-1816.53844049,0.00034632,120]
[310690532,1704641496215,-22941.44,0.00034632,7]
[310690533,1704641496225,-457.0,0.00034632,120]
[310690534,1704641496236,-239.16067766,0.00034632,120]
[310690535,1704641496246,-250.88903903,0.00034632,30]
[310690536,1704641496256,-448.70533303,0.00034632,30]
[310690537,1704641496266,-7071.39445545,0.00034632,120]
[310690538,1704641496277,-417.23839878,0.00034632,120]
[310690539,1704641496288,-379.84800867,0.00034632,120]
[310690540,1704641496298,-100000.0,0.00034632,14]
[310690541,1704641496309,-304.4613821,0.00034632,30]
[310690542,1704641496319,-1133.0,0.00034632,120]
[310690543,1704641496329,-8952.0,0.00034632,15]
[310690544,1704641496339,-170.0,0.00034632,120]
[310690545,1704641496350,-3617.0,0.00034632,120]
[310690546,1704641496361,-165.03153515,0.00034632,120]
[310690547,1704641496371,-155592.09,0.00034632,30]
[310690548,1704641496382,-601.192524,0.00034632,120]
[310690549,1704641496393,-1000.0,0.00034632,120]
[310690550,1704641496403,-1000.0,0.00034632,2]
[310690551,1704641496415,-53557.88367665,0.00034632,2]
[310690552,1704641496425,-625.37449925,0.00034632,3]
[310690553,1704641496436,-1000.0,0.00034632,30]
[310690554,1704641496446,-700.0,0.00034632,30]
[310690555,1704641496457,-155.5,0.00034632,120]
[310690556,1704641496467,-155.5,0.00034632,120]
[310690557,1704641496478,-155.5,0.00034632,120]
[310690558,1704641496489,-500.0,0.00034632,120]
[310690559,1704641496500,-288.89191523,0.00034632,30]
[310690560,1704641496742,-500.0,0.00034632,30]
[310690561,1704641496752,-500.0,0.00034632,30]
[310690562,1704641496762,-500.0,0.00034632,30]
[310690563,1704641496771,-500.0,0.00034632,30]
[310690564,1704641496781,-500.0,0.00034632,30]